Workbook

Sheet Mooring line catenary
R2: node | S2: factor | T2: hor - x | U2: Column1 | V2: factor2 | W2: vert - y
D3: Catenary mooring line shape plot tool | R3: 0 | S3: =R3/10 -> 0 | T3: =$T$13*S3 -> 0.0 | V3: =(-1/$I$30)*LN(COS(S3*$I$30)) -> 0 | W3: =V3*$W$13/$V$13 -> 0
R4: 1 | S4: =R4/10 -> 0.1 | T4: 17.1 | V4: =(-1/$I$30)*LN(COS(S4*$I$30)) -> 0.0002947210124 | W4: 0.9994265229
R5: 2 | S5: 0.2 | T5: 34.1 | V5: =(-1/$I$30)*LN(COS(S5*$I$30)) -> 0.00117890453 | W5: 3.997775542
R6: 3 | S6: 0.3 | T6: 51.2 | V6: =(-1/$I$30)*LN(COS(S6*$I$30)) -> 0.002652611999 | W6: 8.995255428
R7: 4 | S7: 0.4 | T7: 68.3 | V7: =(-1/$I$30)*LN(COS(S7*$I$30)) -> 0.00471594585 | W7: 15.99221353
R8: 5 | S8: 0.5 | T8: 85.4 | V8: =(-1/$I$30)*LN(COS(S8*$I$30)) -> 0.007369049524 | W8: 24.98913627
R9: 6 | S9: 0.6 | T9: 102.4 | V9: =(-1/$I$30)*LN(COS(S9*$I$30)) -> 0.01061210751 | W9: 35.98664929
R10: 7 | S10: 0.7 | T10: 119.5 | V10: =(-1/$I$30)*LN(COS(S10*$I$30)) -> 0.01444534542 | W10: 48.98551761
R11: 8 | S11: 0.8 | T11: 136.6 | V11: =(-1/$I$30)*LN(COS(S11*$I$30)) -> 0.01886903 | W11: 63.98664583
R12: 9 | S12: 0.9 | T12: 153.6 | V12: =(-1/$I$30)*LN(COS(S12*$I$30)) -> 0.02388346925 | W12: 80.99107842
R13: 10 | S13: 1 | T13: =I24 -> 170.7 | V13: =(-1/$I$30)*LN(COS(S13*$I$30)) -> 0.02948901252 | W13: =I18 -> 100.00
H15: Catenary Mooring Line Shape Tool
D17: Input parameters
E18: waterdepth plus the distance between sealevel and the fairlead | G18: d | I18: 100.00 | O18: [m]
E19: force applied to the mooring line at the fairlead | G19: F | I19: 500.0 | O19: [t]
E20: normalized thread diameter | G20: D | I20: 0.60 | O20: [m]
E21: submerged density of the line material (steel in air = 7,8 ) | G21: ρ | I21: 6.8 | O21: [t/m^3]
D23: Results
E24: horizontal distance between the fairlead and the touchdown point of the mooring line on the seabed | G24: X | I24: =IFERROR(((I19/I27)-I18)*LN((I29+(I19/I27))/((I19/I27)-I18)),"enter correct input parameters") -> 170.71 | O24: [m]
E25: weight of the suspended chain | G25: V | I25: =IFERROR(I27*I29,"enter correct input parameters") -> 394.1 | O25: [t]
E26: cross sectional area of the thread | G26: A | I26: =IFERROR((I20/2)^2*PI(),"enter correct input parameters") -> 0.28 | O26: [m^2]
E27: unit weight of the mooring line in water | G27: w | I27: =IFERROR(I21*I26,"enter correct input parameters") -> 1.92 | O27: [t/m]
E28: normalized horizontal tension component | G28: T_0 | I28: =IFERROR(I19*I24/SQRT(I29^2+I24^2),"enter correct input parameters") -> 320.0 | O28: [t]
E29: length of the suspended mooring line | G29: S | I29: =IFERROR(SQRT(I18*(2*I19/I27-I18)),"enter correct input parameters") -> 204.97 | O29: [m]
E30: catenary shape parameter | G30: b | I30: =((I21:M21)*(I26:M26)*9.81)/(I28:M28) -> 0.05894 | O30: [-]
D32: Figure
